[Event "Live Chess"]
[Site "Chess.com"]
[Date "2024.06.02"]
[Round "-"]
[White "Step-S"]
[Black "Pablo_dmp"]
[Result "0-1"]
[WhiteElo "1326"]
[BlackElo "1980"]
[TimeControl "300"]
[EndTime "6:49:41 PDT"]
[Termination "Pablo_dmp won by resignation"]

1. e4 {[%clk 0:04:57.1]} 1... Nf6 {[%clk 0:04:59.9]} 2. e5 {[%clk 0:04:54.6]}
2... Nd5 {[%clk 0:04:46.4]} 3. d4 {[%clk 0:04:46.1]} 3... d6 {[%clk 0:04:26.2]}
4. Nf3 {[%clk 0:04:35.5]} 4... g6 {[%clk 0:04:23.3]} 5. Bc4 {[%clk 0:04:33.6]}
5... e6 {[%clk 0:04:21.9]} 6. O-O {[%clk 0:04:27]} 6... Bg7 {[%clk 0:04:20.5]}
7. exd6 {[%clk 0:04:24.3]} 7... Qxd6 {[%clk 0:04:14.2]} 8. Re1 {[%clk
0:04:10.4]} 8... O-O {[%clk 0:04:11.4]} 9. Nbd2 {[%clk 0:03:57.3]} 9... b6
{[%clk 0:04:06]} 10. Ne4 {[%clk 0:03:50.6]} 10... Qc6 {[%clk 0:03:57.2]} 11. a4
{[%clk 0:03:38.3]} 11... a6 {[%clk 0:03:49.4]} 12. Nfg5 {[%clk 0:03:20.5]} 12...
Qxc4 {[%clk 0:03:47.2]} 13. b3 {[%clk 0:03:06]} 13... Qc6 {[%clk 0:03:44.2]} 14.
c4 {[%clk 0:02:49.3]} 14... Nf6 {[%clk 0:03:37]} 15. Qg4 {[%clk 0:02:35.8]}
15... Nxg4 {[%clk 0:03:31.6]} 0-1

[Event "Live Chess"]
[Site "Chess.com"]
[Date "2024.06.02"]
[Round "-"]
[White "silunn"]
[Black "Queensandpawns"]
[Result "1/2-1/2"]
[WhiteElo "2132"]
[BlackElo "2294"]
[TimeControl "300"]
[EndTime "6:49:57 PDT"]
[Termination "Game drawn by repetition"]

1. e4 {[%clk 0:04:58.6]} 1... e5 {[%clk 0:04:58.3]} 2. Nf3 {[%clk 0:04:58.2]}
2... Nf6 {[%clk 0:04:58.2]} 3. Nxe5 {[%clk 0:04:56.8]} 3... Nc6 {[%clk
0:04:58.1]} 4. d4 {[%clk 0:04:53.1]} 4... Nxe5 {[%clk 0:04:55.7]} 5. dxe5 {[%clk
0:04:52.1]} 5... Nxe4 {[%clk 0:04:55.6]} 6. Bd3 {[%clk 0:04:42.1]} 6... Nc5
{[%clk 0:04:30.6]} 7. Be3 {[%clk 0:04:40.7]} 7... Nxd3+ {[%clk 0:04:29.2]} 8.
Qxd3 {[%clk 0:04:40.6]} 8... Be7 {[%clk 0:04:28.3]} 9. Nc3 {[%clk 0:04:37.2]}
9... O-O {[%clk 0:04:26.5]} 10. O-O {[%clk 0:04:36.4]} 10... c6 {[%clk
0:04:25.9]} 11. f4 {[%clk 0:04:35.3]} 11... d5 {[%clk 0:04:25.3]} 12. f5 {[%clk
0:04:30.7]} 12... Bg5 {[%clk 0:04:24.1]} 13. f6 {[%clk 0:04:24.6]} 13... Bxe3+
{[%clk 0:04:21.9]} 14. Qxe3 {[%clk 0:04:24.5]} 14... Qb6 {[%clk 0:04:21.5]} 15.
Qxb6 {[%clk 0:04:22.1]} 15... axb6 {[%clk 0:04:21.4]} 16. fxg7 {[%clk
0:04:19.1]} 16... Kxg7 {[%clk 0:04:20.9]} 17. a3 {[%clk 0:04:08]} 17... Re8
{[%clk 0:04:01.4]} 18. Rae1 {[%clk 0:04:06.1]} 18... Bg4 {[%clk 0:03:58.9]} 19.
Rf4 {[%clk 0:04:04.1]} 19... Bh5 {[%clk 0:03:57.3]} 20. h4 {[%clk 0:03:44.1]}
20... Re7 {[%clk 0:03:51.9]} 21. g4 {[%clk 0:03:26]} 21... Bg6 {[%clk
0:03:49.5]} 22. Rf2 {[%clk 0:03:25.2]} 22... Rae8 {[%clk 0:03:45]} 23. h5 {[%clk
0:02:47.5]} 23... Be4 {[%clk 0:03:42.3]} 24. Nxe4 {[%clk 0:02:46.4]} 24... Rxe5
{[%clk 0:03:39.8]} 25. Ref1 {[%clk 0:02:42.8]} 25... Rxe4 {[%clk 0:03:35.5]} 26.
Rxf7+ {[%clk 0:02:41.4]} 26... Kh6 {[%clk 0:03:34.5]} 27. Kh2 {[%clk 0:02:18.2]}
27... Rxg4 {[%clk 0:03:14.4]} 28. Kh3 {[%clk 0:02:16.8]} 28... Rge4 {[%clk
0:02:24.9]} 29. R1f6+ {[%clk 0:02:07.1]} 29... Kg5 {[%clk 0:02:23.9]} 30. Rf5+
{[%clk 0:02:03]} 30... Kh6 {[%clk 0:02:23]} 31. R5f6+ {[%clk 0:02:00.4]} 31...
Kxh5 {[%clk 0:02:20]} 32. Rf5+ {[%clk 0:01:54]} 32... Kg6 {[%clk 0:02:18.7]} 33.
R5f6+ {[%clk 0:01:52.8]} 33... Kg5 {[%clk 0:02:12.5]} 34. Rf5+ {[%clk
0:01:51.7]} 34... Kh6 {[%clk 0:02:08.9]} 35. R5f6+ {[%clk 0:01:50.5]} 35... Kg5
{[%clk 0:02:08.4]} 36. Rf5+ {[%clk 0:01:49.4]} 36... Kg6 {[%clk 0:02:08.3]} 37.
R5f6+ {[%clk 0:01:48]} 37... Kh5 {[%clk 0:02:06.4]} 38. Rf5+ {[%clk 0:01:43.7]}
38... Kg6 {[%clk 0:01:45.4]} 1/2-1/2

[Event "Live Chess"]
[Site "Chess.com"]
[Date "2024.06.02"]
[Round "-"]
[White "davigator"]
[Black "DoYouLikeCurry"]
[Result "1-0"]
[WhiteElo "2358"]
[BlackElo "1438"]
[TimeControl "300"]
[EndTime "6:49:58 PDT"]
[Termination "davigator won on time"]

1. e4 {[%clk 0:04:54.9]} 1... c6 {[%clk 0:04:58.7]} 2. d4 {[%clk 0:04:53.5]}
2... d5 {[%clk 0:04:57]} 3. e5 {[%clk 0:04:52.5]} 3... c5 {[%clk 0:04:55.7]} 4.
dxc5 {[%clk 0:04:50.6]} 4... Nc6 {[%clk 0:04:54.4]} 5. a3 {[%clk 0:04:48.8]}
5... Qa5+ {[%clk 0:04:29]} 6. Nc3 {[%clk 0:04:43.3]} 6... Qxc5 {[%clk
0:04:15.1]} 7. Nxd5 {[%clk 0:04:40]} 7... Qa5+ {[%clk 0:03:59.2]} 8. b4 {[%clk
0:04:36.6]} 8... Qd8 {[%clk 0:03:50.4]} 9. Bb2 {[%clk 0:04:34]} 9... Be6 {[%clk
0:03:39.4]} 10. Nf4 {[%clk 0:04:31.9]} 10... Bd7 {[%clk 0:03:24.2]} 11. Bc4
{[%clk 0:04:26.9]} 11... e6 {[%clk 0:03:21.3]} 12. Nf3 {[%clk 0:04:25.4]} 12...
Nge7 {[%clk 0:03:12.9]} 13. O-O {[%clk 0:04:22.9]} 13... Ng6 {[%clk 0:03:11.1]}
14. Ne2 {[%clk 0:04:02.9]} 14... Qc7 {[%clk 0:02:58.8]} 15. Bd3 {[%clk
0:03:48.1]} 15... Ngxe5 {[%clk 0:02:51.7]} 16. Nxe5 {[%clk 0:03:47.1]} 16...
Nxe5 {[%clk 0:02:50.5]} 17. Be4 {[%clk 0:03:46.5]} 17... Rd8 {[%clk 0:02:26.1]}
18. Qc1 {[%clk 0:03:44.2]} 18... Nc4 {[%clk 0:02:12.7]} 19. Bc3 {[%clk
0:03:40.1]} 19... Bb5 {[%clk 0:02:06.7]} 20. Bd3 {[%clk 0:03:38.3]} 20... Nd6
{[%clk 0:01:37.4]} 21. Qb2 {[%clk 0:03:30.8]} 21... Bxd3 {[%clk 0:01:29.4]} 22.
cxd3 {[%clk 0:03:29.4]} 22... Rc8 {[%clk 0:01:26.6]} 23. Bxg7 {[%clk 0:03:26.7]}
23... Bxg7 {[%clk 0:01:23.7]} 24. Qxg7 {[%clk 0:03:25.4]} 24... Ke7 {[%clk
0:01:11.7]} 25. Qg5+ {[%clk 0:03:23.8]} 25... Kd7 {[%clk 0:01:07.1]} 26. d4
{[%clk 0:03:20.8]} 26... Rcg8 {[%clk 0:01:03.4]} 27. Qf4 {[%clk 0:03:16.6]}
27... Qc6 {[%clk 0:00:59.1]} 28. f3 {[%clk 0:03:14]} 28... Qc2 {[%clk 0:00:52]}
29. Rf2 {[%clk 0:03:12.3]} 29... Qg6 {[%clk 0:00:50.6]} 30. Rc1 {[%clk
0:03:06.8]} 30... Rc8 {[%clk 0:00:47.5]} 31. Rd1 {[%clk 0:03:04.9]} 31... Rc2
{[%clk 0:00:43.3]} 32. d5 {[%clk 0:03:03.4]} 32... Re8 {[%clk 0:00:37.5]} 33.
dxe6+ {[%clk 0:03:01.1]} 33... Qxe6 {[%clk 0:00:36.7]} 34. Ng3 {[%clk 0:02:54]}
34... Rxf2 {[%clk 0:00:35.4]} 35. Kxf2 {[%clk 0:02:53.2]} 35... Qa2+ {[%clk
0:00:21.8]} 36. Kg1 {[%clk 0:02:49.8]} 36... Re6 {[%clk 0:00:17.4]} 37. Ne4
{[%clk 0:02:48.2]} 37... Qc4 {[%clk 0:00:04.3]} 38. Rxd6+ {[%clk 0:02:42.8]}
38... Rxd6 {[%clk 0:00:03.6]} 39. Qxd6+ {[%clk 0:02:41.9]} 39... Kc8 {[%clk
0:00:02.4]} 40. Qc5+ {[%clk 0:02:39.5]} 40... Qxc5+ {[%clk 0:00:01.4]} 41. bxc5
{[%clk 0:02:36.3]} 41... Kc7 {[%clk 0:00:00.9]} 42. Kf2 {[%clk 0:02:35.3]} 42...
Kc6 {[%clk 0:00:00.3]} 43. Ke3 {[%clk 0:02:34.7]} 1-0

[Event "Live Chess"]
[Site "Chess.com"]
[Date "2024.06.02"]
[Round "-"]
[White "DylanMeyer1"]
[Black "jimwad"]
[Result "1/2-1/2"]
[WhiteElo "1711"]
[BlackElo "1322"]
[TimeControl "300"]
[EndTime "6:50:00 PDT"]
[Termination "Game drawn - insufficient material"]

1. c4 {[%clk 0:04:57.6]} 1... e5 {[%clk 0:04:58.2]} 2. Nc3 {[%clk 0:04:56.9]}
2... Nc6 {[%clk 0:04:54.8]} 3. g3 {[%clk 0:04:56]} 3... g6 {[%clk 0:04:54.1]} 4.
Bg2 {[%clk 0:04:55.1]} 4... Bg7 {[%clk 0:04:53.4]} 5. e3 {[%clk 0:04:54.2]} 5...
d6 {[%clk 0:04:48.8]} 6. Nge2 {[%clk 0:04:52.9]} 6... Bd7 {[%clk 0:04:47.7]} 7.
O-O {[%clk 0:04:50.7]} 7... Nge7 {[%clk 0:04:46.2]} 8. d4 {[%clk 0:04:50.1]}
8... exd4 {[%clk 0:04:44.9]} 9. exd4 {[%clk 0:04:50]} 9... O-O {[%clk
0:04:41.6]} 10. b3 {[%clk 0:04:48.1]} 10... Nf5 {[%clk 0:04:32.1]} 11. d5 {[%clk
0:03:42.9]} 11... Ne5 {[%clk 0:04:11]} 12. Bb2 {[%clk 0:03:14.7]} 12... c6
{[%clk 0:04:06.9]} 13. Qd2 {[%clk 0:03:04.8]} 13... cxd5 {[%clk 0:03:57.8]} 14.
Nxd5 {[%clk 0:03:02.6]} 14... Bc6 {[%clk 0:03:55.4]} 15. Rab1 {[%clk 0:01:36.2]}
15... Nd7 {[%clk 0:03:51.8]} 16. Bxg7 {[%clk 0:01:32.2]} 16... Kxg7 {[%clk
0:03:50.8]} 17. Nd4 {[%clk 0:01:25]} 17... Nxd4 {[%clk 0:03:44.4]} 18. Qxd4+
{[%clk 0:01:24.9]} 18... f6 {[%clk 0:03:25.5]} 19. Rbe1 {[%clk 0:01:21.3]} 19...
Bxd5 {[%clk 0:03:16.2]} 20. Qxd5 {[%clk 0:01:21.2]} 20... Ne5 {[%clk 0:03:04.9]}
21. f4 {[%clk 0:01:19.8]} 21... Nc6 {[%clk 0:02:59.5]} 22. Re6 {[%clk
0:01:16.9]} 22... Qd7 {[%clk 0:02:48.5]} 23. Rxd6 {[%clk 0:01:15.4]} 23... Qg4
{[%clk 0:02:44]} 24. Rd7+ {[%clk 0:01:02.8]} 24... Kh8 {[%clk 0:02:40]} 25. Rxb7
{[%clk 0:01:02.3]} 25... Rad8 {[%clk 0:02:37.8]} 26. Qxc6 {[%clk 0:01:01.3]}
26... Qe2 {[%clk 0:02:31.7]} 27. Qc5 {[%clk 0:00:44]} 27... Rfe8 {[%clk
0:02:17.7]} 28. h3 {[%clk 0:00:36.4]} 28... Qe3+ {[%clk 0:02:09.4]} 29. Qxe3
{[%clk 0:00:34.4]} 29... Rxe3 {[%clk 0:02:08.6]} 30. Rxa7 {[%clk 0:00:30.2]}
30... Rxg3 {[%clk 0:02:05.1]} 31. Kf2 {[%clk 0:00:27.5]} 31... Rgd3 {[%clk
0:02:02.8]} 32. Re1 {[%clk 0:00:26]} 32... Rd2+ {[%clk 0:02:01.3]} 33. Re2
{[%clk 0:00:25.7]} 33... Rxe2+ {[%clk 0:02:00.2]} 34. Kxe2 {[%clk 0:00:25.6]}
34... Re8+ {[%clk 0:01:56.3]} 35. Kf3 {[%clk 0:00:24.5]} 35... Rd8 {[%clk
0:01:53.7]} 36. Re7 {[%clk 0:00:23.6]} 36... Rd2 {[%clk 0:01:50.9]} 37. Re3
{[%clk 0:00:23.5]} 37... Rxa2 {[%clk 0:01:49.3]} 38. b4 {[%clk 0:00:23]} 38...
Rb2 {[%clk 0:01:44.6]} 39. b5 {[%clk 0:00:21.6]} 39... Kg8 {[%clk 0:01:43.1]}
40. b6 {[%clk 0:00:20.8]} 40... Rxb6 {[%clk 0:01:41.3]} 41. Rc3 {[%clk
0:00:20.7]} 41... Rc6 {[%clk 0:01:38.9]} 42. c5 {[%clk 0:00:20.4]} 42... Kf8
{[%clk 0:01:36.3]} 43. Ke3 {[%clk 0:00:20.1]} 43... Rc7 {[%clk 0:01:34.3]} 44.
Kd4 {[%clk 0:00:19.7]} 44... Ke7 {[%clk 0:01:33.2]} 45. Kd5 {[%clk 0:00:19.3]}
45... Kd7 {[%clk 0:01:26]} 46. c6+ {[%clk 0:00:18.9]} 46... Ke7 {[%clk
0:01:24.5]} 47. Kc5 {[%clk 0:00:17.1]} 47... f5 {[%clk 0:01:20.2]} 48. Kb6
{[%clk 0:00:16.8]} 48... Kd8 {[%clk 0:01:15.7]} 49. Rd3+ {[%clk 0:00:16.3]}
49... Kc8 {[%clk 0:01:14.3]} 50. Rd7 {[%clk 0:00:15.9]} 50... Rxd7 {[%clk
0:01:12.3]} 51. cxd7+ {[%clk 0:00:15.8]} 51... Kxd7 {[%clk 0:01:11.7]} 52. Kc5
{[%clk 0:00:15.7]} 52... Ke6 {[%clk 0:01:10.5]} 53. Kd4 {[%clk 0:00:15.6]} 53...
Kf6 {[%clk 0:01:09.7]} 54. h4 {[%clk 0:00:14.5]} 54... h6 {[%clk 0:01:08.4]} 55.
Kd5 {[%clk 0:00:13.9]} 55... g5 {[%clk 0:01:07.6]} 56. hxg5+ {[%clk 0:00:13.8]}
56... hxg5 {[%clk 0:01:06.8]} 57. fxg5+ {[%clk 0:00:12.9]} 57... Kxg5 {[%clk
0:01:06.1]} 58. Bf3 {[%clk 0:00:12.4]} 58... Kf4 {[%clk 0:01:04.8]} 59. Bg2
{[%clk 0:00:11.3]} 59... Kg3 {[%clk 0:01:02.9]} 60. Bh1 {[%clk 0:00:10.5]} 60...
f4 {[%clk 0:01:02]} 61. Ke4 {[%clk 0:00:09.2]} 61... Kh2 {[%clk 0:00:54.5]} 62.
Bf3 {[%clk 0:00:09.1]} 62... Kg3 {[%clk 0:00:53.5]} 63. Bh5 {[%clk 0:00:08]}
63... f3 {[%clk 0:00:47.8]} 64. Bxf3 {[%clk 0:00:07.9]} 1/2-1/2

[Event "Live Chess"]
[Site "Chess.com"]
[Date "2024.06.02"]
[Round "-"]
[White "KeithArkell"]
[Black "NAZRIZ1977"]
[Result "1-0"]
[WhiteElo "2424"]
[BlackElo "2069"]
[TimeControl "300"]
[EndTime "6:50:00 PDT"]
[Termination "KeithArkell won by resignation"]

1. d4 {[%clk 0:04:56.6]} 1... c5 {[%clk 0:04:56.3]} 2. d5 {[%clk 0:04:55.1]}
2... d6 {[%clk 0:04:54.4]} 3. Nf3 {[%clk 0:04:54.1]} 3... g6 {[%clk 0:04:53.8]}
4. Nc3 {[%clk 0:04:53.7]} 4... Bg7 {[%clk 0:04:53.3]} 5. e4 {[%clk 0:04:53.6]}
5... Nf6 {[%clk 0:04:51.7]} 6. Bb5+ {[%clk 0:04:52.7]} 6... Bd7 {[%clk
0:04:49.8]} 7. a4 {[%clk 0:04:51.8]} 7... O-O {[%clk 0:04:48.5]} 8. h3 {[%clk
0:04:50.6]} 8... a6 {[%clk 0:04:47.7]} 9. Bc4 {[%clk 0:04:49.8]} 9... Bc8 {[%clk
0:04:34.7]} 10. O-O {[%clk 0:04:47.9]} 10... Nbd7 {[%clk 0:04:34.1]} 11. Re1
{[%clk 0:04:46.4]} 11... b6 {[%clk 0:04:33.5]} 12. Bf4 {[%clk 0:04:45.4]} 12...
Nh5 {[%clk 0:04:32.4]} 13. Bh2 {[%clk 0:04:44.5]} 13... Rb8 {[%clk 0:04:25.6]}
14. e5 {[%clk 0:04:39.5]} 14... dxe5 {[%clk 0:04:19.4]} 15. Nxe5 {[%clk
0:04:38.5]} 15... Nxe5 {[%clk 0:04:18.4]} 16. Bxe5 {[%clk 0:04:37.7]} 16... Bxe5
{[%clk 0:04:17.8]} 17. Rxe5 {[%clk 0:04:36.9]} 17... Qc7 {[%clk 0:04:03.6]} 18.
Qe2 {[%clk 0:04:33]} 18... Rb7 {[%clk 0:03:55.3]} 19. Re1 {[%clk 0:04:30.9]}
19... Re8 {[%clk 0:03:47]} 20. Qe3 {[%clk 0:04:30.1]} 20... Ng7 {[%clk
0:03:38.8]} 21. Qf3 {[%clk 0:04:26.8]} 21... e6 {[%clk 0:03:27.9]} 22. dxe6
{[%clk 0:04:21.1]} 22... Nxe6 {[%clk 0:03:26.7]} 23. Nd5 {[%clk 0:04:17.9]} 1-0

[Event "Live Chess"]
[Site "Chess.com"]
[Date "2024.06.02"]
[Round "-"]
[White "Nazar-Makarchuk"]
[Black "Mangoalo"]
[Result "1-0"]
[WhiteElo "1495"]
[BlackElo "1068"]
[TimeControl "300"]
[EndTime "6:50:04 PDT"]
[Termination "Nazar-Makarchuk won by resignation"]

1. e4 {[%clk 0:04:57.4]} 1... e6 {[%clk 0:04:59.9]} 2. d4 {[%clk 0:04:56.1]}
2... d5 {[%clk 0:04:59.8]} 3. exd5 {[%clk 0:04:54.1]} 3... exd5 {[%clk
0:04:59.7]} 4. Nc3 {[%clk 0:04:53.4]} 4... Nf6 {[%clk 0:04:59.5]} 5. Nf3 {[%clk
0:04:52.4]} 5... Bb4 {[%clk 0:04:59.4]} 6. Bg5 {[%clk 0:04:51.3]} 6... Nc6
{[%clk 0:04:59.3]} 7. Bb5 {[%clk 0:04:48.9]} 7... Bxc3+ {[%clk 0:04:57.6]} 8.
bxc3 {[%clk 0:04:47.8]} 8... Bd7 {[%clk 0:04:56.9]} 9. O-O {[%clk 0:04:46.5]}
9... a6 {[%clk 0:04:54.8]} 10. Bxc6 {[%clk 0:04:45.5]} 10... Bxc6 {[%clk
0:04:54.7]} 11. Ne5 {[%clk 0:04:44.3]} 11... Bd7 {[%clk 0:04:48.4]} 12. Nxd7
{[%clk 0:04:43.4]} 12... Qxd7 {[%clk 0:04:45.2]} 13. Bxf6 {[%clk 0:04:42.1]}
13... gxf6 {[%clk 0:04:45.1]} 14. Qe2+ {[%clk 0:04:40.7]} 14... Qe7 {[%clk
0:04:40.2]} 15. Qxe7+ {[%clk 0:04:39.2]} 15... Kxe7 {[%clk 0:04:40.1]} 16. Rfe1+
{[%clk 0:04:38.4]} 1-0

[Event "Live Chess"]
[Site "Chess.com"]
[Date "2024.06.02"]
[Round "-"]
[White "Pandreq"]
[Black "RichardABates"]
[Result "0-1"]
[WhiteElo "1236"]
[BlackElo "2368"]
[TimeControl "300"]
[EndTime "6:50:09 PDT"]
[Termination "RichardABates won by checkmate"]

1. d4 {[%clk 0:04:58.3]} 1... Nf6 {[%clk 0:04:58.3]} 2. c4 {[%clk 0:04:57.2]}
2... e6 {[%clk 0:04:56.9]} 3. a3 {[%clk 0:04:55.5]} 3... c5 {[%clk 0:04:49.3]}
4. d5 {[%clk 0:04:51]} 4... exd5 {[%clk 0:04:42]} 5. cxd5 {[%clk 0:04:50.9]}
5... d6 {[%clk 0:04:41.1]} 6. Nc3 {[%clk 0:04:50.2]} 6... g6 {[%clk 0:04:39.5]}
7. Nf3 {[%clk 0:04:49.1]} 7... Bg7 {[%clk 0:04:35.8]} 8. e4 {[%clk 0:04:47.9]}
8... O-O {[%clk 0:04:34]} 9. Bd3 {[%clk 0:04:46.1]} 9... Bg4 {[%clk 0:04:22.9]}
10. O-O {[%clk 0:04:44.3]} 10... Nbd7 {[%clk 0:04:18.7]} 11. Bg5 {[%clk
0:04:31.1]} 11... h6 {[%clk 0:04:15.6]} 12. Bf4 {[%clk 0:04:23.4]} 12... Qe7
{[%clk 0:04:10]} 13. Re1 {[%clk 0:04:18.7]} 13... Nh5 {[%clk 0:04:06.1]} 14. Bd2
{[%clk 0:04:01.3]} 14... Ne5 {[%clk 0:03:56.8]} 15. Be2 {[%clk 0:03:55.3]} 15...
Bxf3 {[%clk 0:03:48.3]} 16. Bxf3 {[%clk 0:03:53.6]} 16... Nd3 {[%clk 0:03:46.6]}
17. Re2 {[%clk 0:03:38.5]} 17... Nhf4 {[%clk 0:03:44.5]} 18. Bxf4 {[%clk
0:03:32.5]} 18... Nxf4 {[%clk 0:03:42.9]} 19. Rc2 {[%clk 0:03:21.8]} 19... a6
{[%clk 0:03:37.9]} 20. Ne2 {[%clk 0:03:12.9]} 20... g5 {[%clk 0:03:26.5]} 21.
Nxf4 {[%clk 0:03:06.7]} 21... gxf4 {[%clk 0:03:25]} 22. Qd3 {[%clk 0:02:55.2]}
22... Bd4 {[%clk 0:03:16.5]} 23. Re1 {[%clk 0:02:40.5]} 23... Qe5 {[%clk
0:03:12.3]} 24. Ree2 {[%clk 0:02:32.7]} 24... Kh8 {[%clk 0:03:07.6]} 25. Bg4
{[%clk 0:02:18.4]} 25... Rg8 {[%clk 0:03:05.4]} 26. Bf5 {[%clk 0:02:06.9]} 26...
Rg5 {[%clk 0:02:48.6]} 27. Qh3 {[%clk 0:01:55.9]} 27... Kg7 {[%clk 0:02:43.4]}
28. Kf1 {[%clk 0:01:36.9]} 28... Rg8 {[%clk 0:02:39.2]} 29. f3 {[%clk
0:01:19.1]} 29... b5 {[%clk 0:02:34]} 30. Ke1 {[%clk 0:01:08.4]} 30... c4 {[%clk
0:02:31.9]} 31. Kd1 {[%clk 0:01:04.5]} 31... Be3 {[%clk 0:02:27.8]} 32. Ke1
{[%clk 0:01:00.1]} 32... Bc5 {[%clk 0:02:15.9]} 33. Kf1 {[%clk 0:00:47.6]} 33...
Qd4 {[%clk 0:02:12.3]} 34. Ke1 {[%clk 0:00:38.7]} 34... Qg1+ {[%clk 0:02:06.6]}
35. Kd2 {[%clk 0:00:36.2]} 35... Be3+ {[%clk 0:02:04.9]} 36. Kc3 {[%clk
0:00:31.5]} 36... Qd1 {[%clk 0:02:02.5]} 37. Kb4 {[%clk 0:00:25.8]} 37... Qd4
{[%clk 0:01:46.6]} 38. Qh4 {[%clk 0:00:19]} 38... a5+ {[%clk 0:01:40.9]} 39.
Kxb5 {[%clk 0:00:15.3]} 39... Rb8+ {[%clk 0:01:34.7]} 40. Kxa5 {[%clk
0:00:08.1]} 40... Qa7# {[%clk 0:01:29.5]} 0-1

[Event "Live Chess"]
[Site "Chess.com"]
[Date "2024.06.02"]
[Round "-"]
[White "Grace6363"]
[Black "Duke_of_Bebington"]
[Result "1/2-1/2"]
[WhiteElo "1146"]
[BlackElo "1594"]
[TimeControl "300"]
[EndTime "6:50:11 PDT"]
[Termination "Game drawn by repetition"]

1. d4 {[%clk 0:04:56]} 1... d5 {[%clk 0:04:58.7]} 2. c4 {[%clk 0:04:55.4]} 2...
c6 {[%clk 0:04:56.3]} 3. Nc3 {[%clk 0:04:54.2]} 3... e5 {[%clk 0:04:55.4]} 4.
dxe5 {[%clk 0:04:52.8]} 4... d4 {[%clk 0:04:54.1]} 5. Ne4 {[%clk 0:04:49.2]}
5... Qa5+ {[%clk 0:04:53.6]} 6. Bd2 {[%clk 0:04:45.6]} 6... Qxe5 {[%clk
0:04:51.5]} 7. f3 {[%clk 0:04:44.6]} 7... Be7 {[%clk 0:04:42.8]} 8. e3 {[%clk
0:04:43.7]} 8... dxe3 {[%clk 0:04:36.8]} 9. Bxe3 {[%clk 0:04:43]} 9... Qxb2
{[%clk 0:04:31.5]} 10. Bd4 {[%clk 0:04:36.7]} 10... Qb4+ {[%clk 0:04:19.6]} 11.
Bc3 {[%clk 0:04:20.8]} 11... Qa3 {[%clk 0:04:14.9]} 12. Qb3 {[%clk 0:04:15.2]}
12... Qxb3 {[%clk 0:04:12.2]} 13. axb3 {[%clk 0:04:14.4]} 13... Nf6 {[%clk
0:04:09.9]} 14. Bd3 {[%clk 0:04:08.8]} 14... Nxe4 {[%clk 0:04:07.8]} 15. Bxe4
{[%clk 0:04:08.1]} 15... O-O {[%clk 0:04:07]} 16. Ne2 {[%clk 0:04:07.3]} 16...
Be6 {[%clk 0:04:03.9]} 17. O-O {[%clk 0:04:05.7]} 17... Nd7 {[%clk 0:04:02.5]}
18. Nf4 {[%clk 0:04:03.9]} 18... Nc5 {[%clk 0:03:57.6]} 19. Bc2 {[%clk
0:04:01.5]} 19... Rfd8 {[%clk 0:03:45.6]} 20. Rfd1 {[%clk 0:03:56.9]} 20... a6
{[%clk 0:03:31.9]} 21. b4 {[%clk 0:03:55.8]} 21... Nd7 {[%clk 0:03:22.8]} 22.
Nxe6 {[%clk 0:03:54.7]} 22... fxe6 {[%clk 0:03:22.7]} 23. Be4 {[%clk 0:03:33.3]}
23... Nf6 {[%clk 0:03:13.6]} 24. Bxf6 {[%clk 0:03:27.6]} 24... Bxf6 {[%clk
0:03:12.4]} 25. Rab1 {[%clk 0:03:22.6]} 25... g6 {[%clk 0:03:07.9]} 26. g4
{[%clk 0:03:21]} 26... Kf7 {[%clk 0:03:06.8]} 27. h3 {[%clk 0:03:16.9]} 27...
Bd4+ {[%clk 0:02:57.9]} 28. Kg2 {[%clk 0:03:12.9]} 28... Rd7 {[%clk 0:02:57.3]}
29. Rb3 {[%clk 0:03:06.8]} 29... Rad8 {[%clk 0:02:56.4]} 30. Rbd3 {[%clk
0:03:05.8]} 30... Ke7 {[%clk 0:02:51.6]} 31. f4 {[%clk 0:03:02.4]} 31... Bg7
{[%clk 0:02:47.4]} 32. Rxd7+ {[%clk 0:03:00.6]} 32... Rxd7 {[%clk 0:02:46.5]}
33. Rxd7+ {[%clk 0:03:00]} 33... Kxd7 {[%clk 0:02:46]} 34. f5 {[%clk 0:02:55.5]}
34... exf5 {[%clk 0:02:45]} 35. gxf5 {[%clk 0:02:54.8]} 35... gxf5 {[%clk
0:02:36.5]} 36. Bxf5+ {[%clk 0:02:54]} 36... Kc7 {[%clk 0:02:35.9]} 37. Bxh7
{[%clk 0:02:53.5]} 37... Bc3 {[%clk 0:02:35.1]} 38. b5 {[%clk 0:02:44.9]} 38...
a5 {[%clk 0:02:30.8]} 39. Bc2 {[%clk 0:02:39.6]} 39... cxb5 {[%clk 0:02:26.6]}
40. cxb5 {[%clk 0:02:38.8]} 40... Kb6 {[%clk 0:02:26.3]} 41. Ba4 {[%clk
0:02:29.1]} 41... Kc5 {[%clk 0:02:25.3]} 42. Kf2 {[%clk 0:02:22.3]} 42... Kb4
{[%clk 0:02:23.9]} 43. Bd1 {[%clk 0:02:17.5]} 43... Kxb5 {[%clk 0:02:22.5]} 44.
Ke3 {[%clk 0:02:14.7]} 44... Kc5 {[%clk 0:02:20]} 45. Kd3 {[%clk 0:02:13.4]}
45... Bf6 {[%clk 0:02:16.4]} 46. Kc2 {[%clk 0:02:08]} 46... b5 {[%clk 0:02:15]}
47. Kb3 {[%clk 0:02:04.8]} 47... a4+ {[%clk 0:02:13.9]} 48. Ka2 {[%clk
0:01:59.8]} 48... Bh4 {[%clk 0:02:13.1]} 49. Ka3 {[%clk 0:01:50.5]} 49... Be1
{[%clk 0:02:09.5]} 50. Bc2 {[%clk 0:01:46.1]} 50... Kd4 {[%clk 0:02:07.4]} 51.
Bxa4 {[%clk 0:01:42]} 51... b4+ {[%clk 0:02:03.8]} 52. Kb3 {[%clk 0:01:38.3]}
52... Kc5 {[%clk 0:02:02.4]} 53. Be8 {[%clk 0:01:34.4]} 53... Bh4 {[%clk
0:01:38.6]} 54. Bd7 {[%clk 0:01:25.5]} 54... Bg3 {[%clk 0:01:37.5]} 55. Be8
{[%clk 0:01:24.4]} 55... Bh4 {[%clk 0:01:37.4]} 56. Bd7 {[%clk 0:01:24]} 56...
Bf2 {[%clk 0:01:37.3]} 57. Be8 {[%clk 0:01:23.7]} 57... Bh4 {[%clk 0:01:36.7]}
1/2-1/2